bitfinex/quotes_BTCUSD_20241101
["timestamp","ask_amount","ask_price","bid_price","bid_amount"]
[1730459204852,0.06414212,70097.0,70096.0,0.15226869]
[1730459206746,0.06414212,70097.0,70096.0,0.00960769]
[1730459206965,0.01879956,70097.0,70096.0,0.00960769]
[1730459207173,0.06426831,70097.0,70096.0,0.15226869]
[1730459207554,0.04546875,70097.0,70096.0,0.15226869]
[1730459208372,0.04546875,70097.0,70096.0,0.00960769]
[1730459208822,0.04546875,70097.0,70096.0,0.001644]
[1730459209057,0.04546875,70097.0,70096.0,0.00997054]
[1730459209745,0.09004098,70097.0,70096.0,0.00997054]
[1730459209946,0.14184098,70097.0,70096.0,0.00997054]
[1730459210802,0.50095523,70097.0,70096.0,0.00997054]
[1730459211005,0.50095873,70097.0,70096.0,0.00997054]
[1730459211213,0.50095873,70097.0,70096.0,0.001644]
[1730459214965,0.50098049,70097.0,70096.0,0.001644]
[1730459217207,0.142676,70089.0,70086.0,0.21468288]
[1730459217413,0.142679,70087.0,70086.0,0.21468288]
[1730459217615,0.37120049,70087.0,70086.0,0.21468288]
[1730459217815,0.37120049,70087.0,70084.0,0.001646]
[1730459217816,0.142682,70086.0,70084.0,0.001646]
[1730459218020,0.04549401,70085.0,70084.0,0.001646]
[1730459218876,0.26720587,70085.0,70084.0,0.001646]
[1730459219078,0.27790364,70085.0,70084.0,0.001646]
[1730459220228,0.18817031,70085.0,70084.0,0.001646]
[1730459220441,0.32662556,70085.0,70084.0,0.001646]
[1730459221766,0.3265819,70085.0,70084.0,0.001646]
[1730459221989,0.19459152,70085.0,70084.0,0.001646]
[1730459224523,0.19459152,70085.0,70084.0,0.144331]
[1730459225822,0.1625079,70085.0,70084.0,0.144331]
[1730459226051,0.20793221,70085.0,70084.0,0.144331]
[1730459226747,0.06947696,70085.0,70084.0,0.144331]
[1730459227180,0.06947696,70085.0,70084.0,0.42955337]
[1730459227419,0.06947696,70085.0,70084.0,0.4340166]
[1730459227640,0.06947696,70085.0,70084.0,0.32619423]
[1730459228354,0.06947696,70085.0,70084.0,0.4340166]
[1730459228567,0.05878889,70085.0,70084.0,0.4340166]
[1730459228992,0.06947678,70085.0,70084.0,0.4340166]
[1730459229197,0.05878889,70085.0,70084.0,0.5724939]
[1730459229416,0.05878889,70085.0,70084.0,0.14879423]
[1730459229888,0.04542886,70085.0,70084.0,0.14879423]
[1730459230096,0.04542886,70085.0,70084.0,0.144331]
[1730459230305,0.04542886,70085.0,70084.0,0.14879417]
[1730459230530,0.04542474,70085.0,70084.0,0.14879417]
[1730459230745,0.03473764,70085.0,70084.0,0.00610917]
[1730459230951,0.04542614,70085.0,70084.0,0.14879417]
[1730459232359,0.04542614,70085.0,70084.0,0.1571518]
[1730459234238,0.04542614,70085.0,70084.0,0.3312518]
[1730459234710,0.21468288,70098.0,70095.0,0.142663]
[1730459234918,0.21773956,70097.0,70096.0,0.00834807]
[1730459235177,0.22843058,70097.0,70095.0,0.142663]
[1730459235330,0.04543685,70096.0,70095.0,0.142663]
[1730459235532,0.1838921,70096.0,70095.0,0.142663]
[1730459238204,0.22843819,70096.0,70095.0,0.142663]
[1730459238609,0.18300134,70096.0,70095.0,0.142663]
[1730459238812,0.22844557,70096.0,70095.0,0.142663]
[1730459239008,0.18389948,70096.0,70095.0,0.142663]
[1730459239870,0.04544423,70096.0,70095.0,0.142663]
[1730459240849,0.04544423,70096.0,70095.0,0.30697043]
[1730459241585,0.04626723,70096.0,70095.0,0.30697043]
[1730459241785,0.04626723,70096.0,70095.0,0.58109473]
[1730459242007,0.01418895,70096.0,70095.0,0.5952873]
[1730459242229,0.000823,70096.0,70095.0,0.79922777]
[1730459242432,0.000823,70096.0,70095.0,0.97706972]
[1730459242697,0.000823,70096.0,70095.0,1.07774083]
[1730459243244,0.000823,70096.0,70095.0,0.9134334]
[1730459243434,0.000823,70096.0,70095.0,0.82034634]
[1730459243639,0.000823,70096.0,70095.0,0.75674255]
[1730459244053,0.000823,70096.0,70095.0,0.82034634]
[1730459244263,0.000823,70096.0,70095.0,0.92104998]
[1730459244485,0.000823,70096.0,70095.0,0.97102051]
[1730459244904,0.000823,70096.0,70095.0,0.97103196]
[1730459245510,0.000823,70096.0,70095.0,0.92863218]
[1730459246643,0.000823,70096.0,70095.0,0.92863115]
[1730459247483,0.000823,70096.0,70095.0,0.93697335]
[1730459249319,0.000823,70096.0,70095.0,0.93251185]
[1730459249536,0.000823,70096.0,70095.0,0.93697335]
[1730459249675,0.000823,70096.0,70095.0,0.76820442]
[1730459249874,0.000823,70096.0,70095.0,0.77266592]
[1730459250078,0.000823,70096.0,70095.0,0.76820442]
[1730459250286,0.000823,70096.0,70095.0,0.77266592]
[1730459250565,0.000823,70096.0,70095.0,0.93251185]
[1730459251746,0.000823,70096.0,70095.0,0.77266591]
[1730459251979,0.000823,70096.0,70095.0,0.76820442]
[1730459252156,0.000823,70096.0,70095.0,0.74966591]
[1730459252365,0.000823,70096.0,70095.0,0.74520442]
[1730459252573,0.000823,70096.0,70095.0,0.74966591]
[1730459252764,0.000823,70096.0,70095.0,0.74520442]
[1730459252967,0.000823,70096.0,70095.0,0.75131191]
[1730459253208,0.000823,70096.0,70095.0,0.91115785]
[1730459253399,0.000823,70096.0,70095.0,0.91561934]
[1730459253618,0.000823,70096.0,70095.0,0.74685042]
[1730459255599,0.000823,70096.0,70095.0,0.77540042]
[1730459255804,0.000823,70096.0,70095.0,0.74685042]
[1730459256015,0.000823,70096.0,70095.0,0.91115785]
[1730459256213,0.000823,70096.0,70095.0,0.75131191]
[1730459256506,0.000823,70096.0,70095.0,0.91115785]
[1730459256650,0.000823,70096.0,70095.0,0.91561934]
[1730459256859,0.000823,70096.0,70095.0,0.91115785]
[1730459257048,0.000823,70096.0,70095.0,0.91561934]
[1730459257396,0.000823,70096.0,70095.0,0.74685042]
[1730459257602,0.000823,70096.0,70095.0,0.75131191]
[1730459257805,0.000823,70096.0,70095.0,0.74685042]
[1730459258011,0.000823,70096.0,70095.0,0.75131191]
[1730459258158,0.000823,70096.0,70095.0,0.74685042]
[1730459258365,0.000823,70096.0,70095.0,0.7513121]
[1730459258574,0.000823,70096.0,70095.0,0.79807613]
[1730459258887,0.000823,70096.0,70095.0,0.80253781]
[1730459259084,0.000823,70096.0,70095.0,0.79807613]
[1730459259422,0.000823,70096.0,70095.0,0.80253781]
[1730459259669,0.000823,70096.0,70095.0,0.79807613]
[1730459259981,0.000823,70096.0,70095.0,0.80253781]
[1730459261373,0.000823,70096.0,70095.0,0.79807613]
[1730459261577,0.000823,70096.0,70095.0,0.80253781]
[1730459262177,0.000823,70096.0,70095.0,0.79807613]
[1730459262379,0.000823,70096.0,70095.0,0.69272179]
[1730459262598,0.000823,70096.0,70095.0,0.70164529]
[1730459262827,0.000823,70096.0,70095.0,0.70164534]
[1730459263996,0.000823,70096.0,70095.0,0.16157475]
[1730459264218,0.000823,70096.0,70095.0,0.15711299]
[1730459264415,0.0084653,70096.0,70095.0,0.26487956]
[1730459264609,0.02179682,70096.0,70095.0,0.26487956]
[1730459264863,0.0084653,70096.0,70095.0,0.26487956]
[1730459265068,0.01415491,70096.0,70095.0,0.15711299]
[1730459268464,0.0354731,70096.0,70095.0,0.15711299]
[1730459268661,0.01415491,70096.0,70095.0,0.15711299]
[1730459269247,0.0354731,70096.0,70095.0,0.1615754]
[1730459269679,0.0354731,70096.0,70095.0,0.0189124]
[1730459269911,0.01150314,70096.0,70095.0,0.15711299]
[1730459270120,0.04621452,70096.0,70095.0,0.15711299]
[1730459270547,0.04621452,70096.0,70095.0,0.1526512]
[1730459273582,0.03553438,70096.0,70095.0,0.1526512]
[1730459273787,0.04621341,70096.0,70095.0,0.1526512]
[1730459274433,0.03553438,70096.0,70095.0,0.1526512]
[1730459275780,0.000823,70096.0,70095.0,0.1526512]
[1730459276024,0.03552588,70096.0,70095.0,0.1526512]
[1730459279185,0.04620423,70096.0,70095.0,0.1526512]
[1730459280882,0.04620777,70096.0,70095.0,0.1526512]
[1730459283555,0.0328661,70096.0,70095.0,0.1526512]
[1730459283763,0.04621739,70096.0,70095.0,0.1526512]
[1730459284143,0.53238048,70096.0,70095.0,0.0099882]
[1730459285201,0.53238048,70096.0,70095.0,0.001646]
[1730459286660,0.53238048,70096.0,70095.0,0.001332]
[1730459291090,0.53238093,70096.0,70095.0,0.001332]
[1730459291292,0.63238093,70096.0,70095.0,0.001332]
[1730459292441,0.67687171,70096.0,70095.0,0.001332]
[1730459294503,0.66619057,70096.0,70095.0,0.001332]
[1730459294729,0.67688476,70096.0,70095.0,0.001332]
[1730459295418,0.65043792,70096.0,70095.0,0.001332]
[1730459295866,0.55043792,70096.0,70095.0,0.001332]
[1730459296291,0.55043792,70096.0,70095.0,0.01051462]
[1730459296512,0.55043792,70096.0,70095.0,0.001332]
[1730459296947,0.55043792,70096.0,70095.0,0.01053115]
[1730459297172,0.55043792,70096.0,70095.0,0.001332]
[1730459297671,0.66254401,70096.0,70095.0,0.001332]
[1730459298389,0.62781893,70096.0,70095.0,0.001332]
[1730459298596,0.66253806,70096.0,70095.0,0.001332]
[1730459298808,0.66253806,70096.0,70095.0,0.01052747]
[1730459299024,0.45283197,70096.0,70095.0,0.001332]
[1730459299239,0.37183197,70096.0,70095.0,0.001332]
[1730459299459,0.37183197,70096.0,70095.0,0.01052747]
[1730459300142,0.32734119,70096.0,70095.0,0.01052747]
[1730459300380,0.37185329,70096.0,70095.0,0.01052747]
[1730459300835,0.32734119,70096.0,70095.0,0.01052747]
[1730459301714,0.43495761,70096.0,70095.0,0.01052747]
[1730459301918,0.4349606,70096.0,70095.0,0.01052747]
[1730459304080,0.47947853,70096.0,70095.0,0.01052747]
[1730459304285,0.142666,70094.0,70090.0,0.13609412]
[1730459304461,0.24558647,70093.0,70090.0,0.13609412]
[1730459304614,0.04540493,70092.0,70090.0,0.13609412]
[1730459304823,0.18386018,70091.0,70090.0,0.13609412]
[1730459305453,0.18386259,70091.0,70090.0,0.13609412]
[1730459305846,0.18386258,70091.0,70090.0,0.13609412]
[1730459306061,0.25450802,70091.0,70090.0,0.13609412]
[1730459307288,0.142676,70089.0,70086.0,0.14268]
[1730459307481,0.04540839,70088.0,70087.0,0.142679]
[1730459309088,0.02137954,70088.0,70087.0,0.142679]
[1730459309257,0.04543152,70088.0,70087.0,0.142679]
[1730459310553,0.26963059,70088.0,70084.0,0.001646]
[1730459310769,0.18811152,70087.0,70084.0,0.144331]
[1730459310972,0.04543152,70086.0,70084.0,0.144331]
[1730459311207,0.04543152,70085.0,70084.0,0.144331]
[1730459312771,0.04543152,70085.0,70084.0,0.14879432]
[1730459314196,0.04543152,70085.0,70084.0,0.144331]
[1730459319392,0.09002643,70085.0,70084.0,0.144331]
[1730459319871,0.05528468,70085.0,70084.0,0.144331]
[1730459320084,0.09006826,70085.0,70084.0,0.144331]
[1730459320689,0.04547335,70085.0,70084.0,0.144331]
[1730459323482,0.13845525,70088.0,70085.0,0.142683]
[1730459323708,0.07937229,70087.0,70086.0,0.142681]
[1730459323899,0.09007389,70087.0,70086.0,0.142681]
[1730459324083,0.07937229,70087.0,70086.0,0.142681]
[1730459324438,0.09007389,70087.0,70086.0,0.142681]
[1730459326230,0.09007389,70087.0,70086.0,0.15149804]
[1730459326989,0.07937201,70087.0,70086.0,0.15149804]
[1730459327192,0.09007353,70087.0,70086.0,0.15149804]
[1730459327497,0.09007338,70087.0,70086.0,0.15149804]
[1730459328117,0.09007338,70087.0,70086.0,0.00881704]
[1730459328349,0.23275238,70087.0,70086.0,0.00881704]
[1730459328557,0.23275238,70087.0,70084.0,0.144331]
[1730459328818,0.04548131,70087.0,70086.0,0.00881704]
[1730459329010,0.09007127,70087.0,70085.0,0.1515006]
[1730459329245,0.13845525,70088.0,70086.0,0.00881704]
[1730459329448,0.06866803,70087.0,70086.0,0.00881704]
[1730459329655,0.09007107,70087.0,70086.0,0.15149804]
[1730459330064,0.09007107,70087.0,70086.0,0.00881704]
[1730459330732,0.04458961,70087.0,70086.0,0.00881704]
[1730459331099,0.09007179,70087.0,70086.0,0.00881704]
[1730459331300,0.18451423,70087.0,70086.0,0.00881704]
[1730459333038,0.46564848,70087.0,70086.0,0.00881704]
[1730459333484,0.142683,70085.0,70084.0,0.001646]
[1730459333718,0.37121004,70085.0,70084.0,0.001646]
[1730459333930,0.47906234,70085.0,70084.0,0.001646]
[1730459334145,0.58601315,70085.0,70084.0,0.001646]
[1730459334582,0.47816085,70085.0,70084.0,0.001646]
[1730459334799,0.47816229,70085.0,70084.0,0.001646]
[1730459338068,0.80641905,70085.0,70084.0,0.001646]
[1730459338272,0.76093543,70085.0,70084.0,0.001646]
[1730459338498,0.7529184,70085.0,70084.0,0.001646]
[1730459338679,0.76361702,70085.0,70084.0,0.001646]
[1730459339106,0.82782371,70085.0,70084.0,0.001646]
[1730459339303,0.76361702,70085.0,70084.0,0.001646]
[1730459340680,1.03567601,70085.0,70084.0,0.001646]
[1730459340905,0.86361702,70085.0,70084.0,0.001646]
[1730459341115,0.97062818,70085.0,70084.0,0.001646]
[1730459341316,0.95992436,70085.0,70084.0,0.001646]
[1730459341538,0.9705786,70085.0,70084.0,0.001646]
[1730459342007,1.0784309,70085.0,70084.0,0.001646]
[1730459342222,0.142714,70070.0,70069.0,0.21468288]
[1730459342468,0.37124337,70070.0,70069.0,0.21468288]
[1730459342631,0.37124337,70070.0,70069.0,0.22350811]
[1730459342865,0.37124337,70070.0,70069.0,0.00882523]
[1730459343275,0.142718,70068.0,70064.0,0.142725]
[1730459343497,0.04548451,70067.0,70061.0,0.60799718]
[1730459343705,0.04548451,70066.0,70065.0,0.15155147]
[1730459343908,0.11431329,70066.0,70065.0,0.142724]
[1730459344116,0.11431329,70066.0,70065.0,0.15155147]
[1730459344504,0.04548451,70066.0,70065.0,0.15155147]
[1730459344702,0.03472818,70066.0,70065.0,0.15155147]
[1730459344908,0.18813577,70066.0,70065.0,0.00882747]
[1730459345118,0.14273,70063.0,70059.0,0.142736]
[1730459345290,0.04541377,70062.0,70057.0,0.001614]
[1730459345489,0.04541377,70062.0,70060.0,0.00883028]
[1730459345490,0.18814777,70061.0,70060.0,0.00883028]
[1730459345724,0.04541377,70061.0,70057.0,0.001614]
[1730459345935,0.142738,70058.0,70057.0,0.001614]
[1730459346159,0.18815177,70058.0,70057.0,0.001614]
[1730459347000,0.04541377,70058.0,70057.0,0.001614]
[1730459348465,0.02404258,70058.0,70057.0,0.001614]
[1730459348678,0.02404258,70058.0,70057.0,0.144354]
[1730459348885,0.02400849,70058.0,70057.0,0.001614]
[1730459349097,0.02400849,70058.0,70057.0,0.144354]
[1730459350548,0.13845525,70060.0,70057.0,0.001614]
[1730459350756,0.01333278,70059.0,70058.0,0.142737]
[1730459350967,0.15178803,70059.0,70058.0,0.142737]
[1730459351406,0.01333278,70059.0,70058.0,0.316737]
[1730459351626,0.02132811,70074.0,70060.0,0.461669]
[1730459351882,0.02399238,70073.0,70063.0,0.0964]
[1730459352016,0.02399238,70073.0,70072.0,0.23911]
[1730459352225,0.01332726,70073.0,70072.0,0.31891]
[1730459352435,0.21468288,70083.0,70074.0,0.28541]
[1730459352636,0.16244411,70082.0,70076.0,0.1078523]
[1730459352992,0.20478635,70082.0,70081.0,0.142692]
[1730459353197,0.16244511,70082.0,70081.0,0.142692]
[1730459353831,0.15178295,70082.0,70081.0,0.142692]
[1730459354838,0.0133277,70082.0,70081.0,0.142692]
[1730459355882,0.0133277,70082.0,70079.0,0.142694]
[1730459355883,0.02399091,70082.0,70079.0,0.142694]
[1730459356281,0.0239922,70081.0,70071.0,0.285422]
[1730459356483,0.0239922,70081.0,70066.0,0.174]
[1730459356484,0.05888801,70080.0,70066.0,0.174]
[1730459356687,0.0239922,70079.0,70067.0,0.285438]
[1730459356891,0.013329,70078.0,70076.0,0.142701]
[1730459357073,0.013329,70077.0,70076.0,0.142701]
[1730459358522,0.31604606,70080.0,70076.0,0.142701]
[1730459358743,0.11117372,70079.0,70076.0,0.142701]
[1730459358951,0.01333341,70078.0,70076.0,0.142701]
[1730459359188,0.01333341,70077.0,70076.0,0.001646]
[1730459359602,0.01333341,70077.0,70076.0,0.144347]
[1730459359808,0.01333341,70077.0,70076.0,0.001646]
[1730459361724,0.15178866,70077.0,70076.0,0.001646]
[1730459361924,0.29448866,70077.0,70076.0,0.001646]
[1730459364437,0.1427,70077.0,70076.0,0.001646]
[1730459365631,0.6363165,70077.0,70076.0,0.001646]
[1730459365846,0.7177165,70077.0,70076.0,0.001646]
[1730459367744,0.8561938,70077.0,70076.0,0.001646]
[1730459368170,0.55335525,70077.0,70076.0,0.001646]
[1730459372977,0.46255525,70077.0,70076.0,0.001646]
[1730459373185,0.1427,70077.0,70076.0,0.001646]
[1730459374081,0.1427,70077.0,70076.0,0.15342895]
[1730459376279,0.1560509,70077.0,70076.0,0.15342895]
[1730459377671,0.2005576,70077.0,70076.0,0.15342895]
[1730459378434,0.27769166,70077.0,70076.0,0.15342895]
[1730459380587,0.2005576,70077.0,70076.0,0.15342895]
[1730459382588,0.1872067,70077.0,70076.0,0.15342895]
[1730459382963,0.20057479,70077.0,70076.0,0.15342895]
[1730459383314,0.20139779,70077.0,70076.0,0.15342895]
[1730459383520,0.00084019,70077.0,70076.0,0.15342895]
[1730459384535,0.14354019,70077.0,70076.0,0.15342895]
[1730459385105,0.22497251,70077.0,70076.0,0.15342895]
[1730459385919,0.14354019,70077.0,70076.0,0.15342895]
[1730459390346,0.143523,70077.0,70076.0,0.15342895]
[1730459392370,0.143523,70077.0,70076.0,0.05342895]
[1730459393976,0.143523,70077.0,70072.0,0.14271]
[1730459393977,0.000823,70077.0,70072.0,0.14271]
[1730459394091,0.1813245,70076.0,70072.0,0.14271]
[1730459395132,0.142703,70076.0,70073.0,0.00849118]
[1730459395784,0.01338344,70075.0,70073.0,0.00849118]
[1730459395970,0.01338344,70074.0,70073.0,0.00849118]
[1730459398639,0.01338404,70074.0,70073.0,0.142708]
[1730459398842,0.01338404,70074.0,70073.0,0.15119918]
[1730459399257,0.01338404,70074.0,70073.0,0.00849118]
[1730459401226,0.09615444,70074.0,70073.0,0.00849118]
[1730459401386,0.01338404,70074.0,70073.0,0.15119918]
[1730459402380,0.01338404,70074.0,70073.0,0.33009918]
[1730459402590,0.01338404,70074.0,70073.0,0.33456321]
[1730459402796,0.01338404,70074.0,70073.0,0.47304051]
[1730459403619,0.01338404,70074.0,70073.0,0.34170528]
[1730459404458,0.01338404,70074.0,70073.0,0.33456321]
[1730459404917,0.000823,70077.0,70076.0,0.142702]
[1730459405159,0.01419569,70077.0,70076.0,0.25506264]
[1730459405383,0.01419569,70077.0,70076.0,0.26354542]
[1730459407411,0.01419569,70077.0,70076.0,0.25908139]
[1730459408241,0.01418717,70077.0,70076.0,0.25908139]
[1730459408442,0.000823,70077.0,70076.0,0.25908139]
[1730459408683,0.0141853,70077.0,70076.0,0.25908139]
[1730459410910,0.000823,70077.0,70076.0,0.25908139]
[1730459411127,0.01418231,70077.0,70076.0,0.25908139]
[1730459411625,0.01418231,70077.0,70076.0,0.15118478]
[1730459412290,0.03555653,70077.0,70076.0,0.15118478]
[1730459412509,0.27135653,70077.0,70076.0,0.00848278]
[1730459412947,0.142703,70076.0,70073.0,0.001646]
[1730459413157,0.01335905,70075.0,70073.0,0.001646]
[1730459413366,0.01335905,70074.0,70073.0,0.001646]
[1730459415227,0.01335905,70074.0,70073.0,0.25225061]
[1730459415648,0.236623,70077.0,70073.0,0.25225061]
[1730459415858,0.01336042,70076.0,70073.0,0.25225061]
[1730459416068,0.01336042,70075.0,70073.0,0.25225061]
[1730459416281,0.01336042,70074.0,70073.0,0.25225061]
[1730459422287,0.01336042,70074.0,70073.0,0.10954261]
[1730459422500,0.01336042,70074.0,70073.0,0.25225061]
[1730459422895,0.01336508,70074.0,70073.0,0.25225061]
[1730459426410,0.000823,70076.0,70073.0,0.10954261]
[1730459426666,0.000823,70076.0,70073.0,0.25224961]
[1730459426667,0.0133691,70075.0,70073.0,0.25224961]
[1730459427096,0.0133691,70074.0,70073.0,0.25224961]
[1730459428186,0.03476248,70074.0,70073.0,0.25224961]
[1730459429479,0.03476248,70074.0,70073.0,0.10954261]
[1730459430127,0.03476248,70074.0,70073.0,0.25225061]
[1730459430567,0.03476248,70074.0,70073.0,0.10954261]
[1730459431871,0.03476248,70074.0,70073.0,0.25225061]
[1730459432521,0.03476248,70074.0,70073.0,0.10954261]
[1730459432742,0.03476248,70074.0,70073.0,0.25225061]
[1730459432952,0.03476248,70074.0,70073.0,0.10954261]
[1730459433159,0.03476248,70074.0,70073.0,0.25225061]
[1730459433580,0.03476248,70074.0,70073.0,0.10954261]
[1730459433786,0.000823,70076.0,70073.0,0.10954261]
[1730459433998,0.02140092,70075.0,70073.0,0.10954261]
[1730459434206,0.03477649,70074.0,70073.0,0.10954261]
[1730459434624,0.57951727,70074.0,70073.0,0.001646]
[1730459434836,0.6222822,70074.0,70073.0,0.001646]
[1730459435246,0.60088128,70074.0,70073.0,0.001646]
[1730459436516,0.05796315,70074.0,70073.0,0.21632888]
[1730459436739,0.01337557,70074.0,70073.0,0.144354]
[1730459437170,0.03476708,70074.0,70073.0,0.144354]
[1730459437589,0.000823,70076.0,70075.0,0.142704]
[1730459437794,0.03558617,70076.0,70075.0,0.25060061]
[1730459438000,0.04628253,70076.0,70075.0,0.25060061]
[1730459440678,0.01151936,70076.0,70075.0,0.25060061]
[1730459440886,0.04629103,70076.0,70075.0,0.25060061]
[1730459441519,0.04129103,70076.0,70075.0,0.25060061]
[1730459443119,0.04211403,70076.0,70075.0,0.25060061]
[1730459448066,0.03291655,70076.0,70075.0,0.25060061]
[1730459448936,0.03291559,70076.0,70075.0,0.25060061]
[1730459450036,0.03291487,70076.0,70075.0,0.25060061]
[1730459450528,0.000823,70076.0,70075.0,1.01158042]
[1730459450763,0.000823,70076.0,70075.0,0.79404326]
[1730459450980,0.000823,70084.0,70083.0,0.142687]
[1730459451189,0.000823,70084.0,70083.0,0.45910556]
[1730459451423,0.000823,70084.0,70083.0,0.50161734]
[1730459451658,0.000823,70084.0,70083.0,0.85588723]
[1730459452371,0.21468288,70100.0,70089.0,0.25057161]
[1730459452372,0.02137083,70099.0,70089.0,0.25057161]
[1730459452584,0.01067767,70098.0,70089.0,0.58328615]
[1730459452797,0.02137083,70099.0,70089.0,0.58328615]
[1730459453023,0.01067772,70098.0,70089.0,0.58328615]
[1730459453250,0.02137083,70099.0,70089.0,0.58328615]
[1730459453479,0.01333939,70095.0,70089.0,0.58328615]
[1730459453686,0.21468288,70100.0,70089.0,0.47538954]
[1730459453687,0.01333939,70094.0,70089.0,0.47538954]
[1730459453895,0.21468288,70100.0,70089.0,0.47538954]
[1730459453896,0.02134307,70099.0,70089.0,0.47538954]
[1730459454131,0.01333942,70095.0,70089.0,0.47538954]
[1730459454339,0.21468288,70100.0,70089.0,0.47538954]
[1730459454555,0.01333336,70095.0,70089.0,0.47538954]
[1730459454815,0.21468288,70100.0,70089.0,0.47538954]
[1730459455037,0.01333339,70095.0,70089.0,0.47538954]
[1730459455248,0.01333348,70094.0,70089.0,0.47538937]
[1730459455455,0.21468288,70100.0,70089.0,0.51553169]
[1730459455670,0.01332867,70095.0,70089.0,0.51553169]
[1730459455880,0.01332867,70095.0,70089.0,0.6234283]
[1730459456119,0.01332867,70095.0,70089.0,0.51553169]
[1730459456505,0.21468288,70100.0,70089.0,0.61896579]
[1730459456734,0.01332477,70099.0,70089.0,0.61896579]
[1730459456945,0.01332477,70098.0,70089.0,0.6234283]
[1730459457164,0.01332477,70097.0,70089.0,0.6234283]
[1730459457408,0.21468288,70100.0,70095.0,0.35845622]
[1730459457613,0.01332128,70099.0,70095.0,0.35845622]
[1730459457823,0.01332128,70098.0,70095.0,0.35845622]
[1730459457939,0.01332128,70099.0,70095.0,0.35845622]
[1730459458167,0.21468288,70100.0,70095.0,0.35845622]
[1730459458168,0.01332128,70098.0,70095.0,0.35845622]
[1730459458362,0.01332128,70097.0,70095.0,0.35845622]
[1730459458739,0.21468288,70100.0,70095.0,0.35845622]
[1730459458905,0.01331858,70099.0,70095.0,0.35845622]
[1730459459519,0.01331637,70098.0,70095.0,0.35845622]
[1730459459725,0.02232725,70243.0,70095.0,0.63334508]
[1730459459726,0.21468288,70108.0,70095.0,0.63334508]
[1730459459966,0.21468288,70108.0,70107.0,0.35843222]
[1730459460356,0.0793,70120.0,70116.0,0.14262]
[1730459460555,0.0793,70120.0,70116.0,0.25051661]
[1730459460784,0.01065068,70117.0,70116.0,0.25051661]
[1730459460954,0.01065068,70117.0,70116.0,0.35841322]
[1730459461173,0.083,70126.0,70117.0,0.285236]
[1730459461368,0.01064992,70125.0,70120.0,0.25050861]
[1730459461816,0.01064992,70125.0,70120.0,0.35840522]
[1730459462024,0.000822,70129.0,70120.0,0.41146242]
[1730459462229,0.21550488,70129.0,70120.0,0.35840522]
[1730459462885,0.21550488,70129.0,70120.0,0.49686047]
[1730459462886,0.000822,70129.0,70120.0,0.49686047]
[1730459463102,0.000822,70129.0,70120.0,0.67406047]
[1730459463723,0.000822,70129.0,70120.0,0.53560522]
[1730459463941,0.000822,70129.0,70120.0,0.54326669]
[1730459464566,0.000822,70129.0,70120.0,0.49156887]
[1730459464987,0.21215088,70134.0,70133.0,0.142586]
[1730459465237,0.21215088,70134.0,70133.0,0.3066814]
[1730459465480,0.000808,70136.0,70134.0,0.142584]
[1730459465913,0.000808,70136.0,70135.0,0.142582]
[1730459468019,0.000808,70136.0,70134.0,0.142583]
[1730459468238,0.000808,70136.0,70133.0,0.1640954]
[1730459468460,0.000808,70136.0,70133.0,0.3066804]
[1730459468679,0.143388,70136.0,70133.0,0.3066804]
[1730459468954,0.142582,70135.0,70133.0,0.1640954]
[1730459469174,0.143388,70136.0,70133.0,0.1640954]
[1730459469385,0.08219942,70135.0,70133.0,0.3066794]
[1730459469604,0.08219942,70135.0,70133.0,0.1640954]
[1730459470268,0.08219942,70135.0,70123.0,0.285212]
[1730459470269,0.30255065,70134.0,70115.0,0.1640954]
[1730459470480,0.2224,70126.0,70125.0,0.21468288]
[1730459470701,0.21825525,70126.0,70117.0,0.21468288]
[1730459470909,0.285225,70121.0,70117.0,0.21468288]
[1730459471119,0.142618,70117.0,70116.0,0.1640954]
[1730459471523,0.28523,70119.0,70116.0,0.1640954]
[1730459471524,0.142617,70118.0,70116.0,0.1640954]
[1730459471750,0.01325662,70117.0,70116.0,0.3067154]
[1730459472388,0.01325662,70118.0,70116.0,0.3067154]
[1730459473710,0.01325662,70118.0,70116.0,0.1640954]
[1730459473923,0.01325662,70118.0,70116.0,0.3067154]
[1730459474129,0.01325662,70118.0,70116.0,0.1640954]
[1730459474546,0.01325662,70118.0,70116.0,0.3067154]
[1730459474961,0.01325662,70118.0,70116.0,0.1640954]
[1730459475381,0.01325662,70117.0,70116.0,0.1640954]
[1730459476002,0.142614,70119.0,70116.0,0.1640954]
[1730459476212,0.01327215,70117.0,70116.0,0.1640954]
[1730459476859,0.01327215,70117.0,70116.0,0.17643107]
[1730459478595,0.0345076,70117.0,70116.0,0.17643107]
[1730459478820,0.01327215,70117.0,70116.0,0.17643107]
[1730459479044,0.01327215,70117.0,70116.0,0.31905107]
[1730459479466,0.0345076,70117.0,70116.0,0.31905107]
[1730459479697,0.0345076,70117.0,70116.0,0.17643107]
[1730459479926,0.0345076,70117.0,70116.0,0.51909066]
[1730459480159,0.000822,70121.0,70120.0,0.142612]
[1730459480368,0.000822,70121.0,70120.0,0.3067074]
[1730459480369,0.02212116,70121.0,70120.0,0.3067074]
[1730459480570,0.02212116,70121.0,70120.0,0.31904062]
[1730459480811,0.03543314,70121.0,70120.0,0.31904062]
[1730459482202,0.03543314,70121.0,70120.0,0.43730183]
[1730459482910,0.01413398,70121.0,70120.0,0.43730183]
[1730459483169,0.01413398,70121.0,70120.0,0.44176255]
[1730459483433,0.01413678,70121.0,70120.0,0.44176234]
[1730459483663,0.01413678,70121.0,70120.0,0.42210113]
[1730459483877,0.01413678,70121.0,70120.0,0.50170113]
[1730459486889,0.000822,70121.0,70120.0,0.50170113]
[1730459487141,0.01414578,70121.0,70120.0,0.50170113]
[1730459487873,0.03547117,70121.0,70120.0,0.15940573]
[1730459487936,0.04613449,70121.0,70120.0,0.15494522]
[1730459489515,0.04613449,70121.0,70120.0,0.01233322]
[1730459490781,0.04617951,70121.0,70120.0,0.142612]
[1730459490989,0.02217227,70121.0,70120.0,0.15493148]
[1730459491199,0.0461913,70121.0,70120.0,0.01231948]
[1730459491406,0.1888013,70121.0,70120.0,0.01231948]
[1730459491647,0.09359313,70121.0,70120.0,0.01231948]
[1730459491858,0.09359313,70121.0,70118.0,0.142616]
[1730459492076,0.19083383,70121.0,70120.0,0.01232448]
[1730459492294,0.23620551,70121.0,70119.0,0.01232509]
[1730459492506,0.04537168,70120.0,70118.0,0.142616]
[1730459492711,0.04537168,70119.0,70118.0,0.142616]
[1730459494473,0.143433,70121.0,70118.0,0.15494158]
[1730459494688,0.04537397,70119.0,70118.0,0.15494158]
[1730459494896,0.03469774,70119.0,70118.0,0.15494158]
[1730459495100,0.04537397,70119.0,70118.0,0.15494158]
[1730459495541,0.04487397,70119.0,70118.0,0.15494158]